bitfinex/quotes_SOLUSD_20250308
["timestamp","ask_amount","ask_price","bid_price","bid_amount"]
[1741438852577,21.58516721,138.06,138.01,1.6428]
[1741438852882,21.58516721,138.02,137.99,0.0001]
[1741438853073,21.58516721,138.01,137.99,0.0001]
[1741438853261,21.58516721,138.02,137.99,0.0001]
[1741438853451,28.83066721,138.02,137.99,0.0001]
[1741438853891,21.58516721,138.01,137.99,0.0001]
[1741438854569,21.58516721,138.0,137.99,0.0001]
[1741438854775,21.58516721,138.01,137.99,0.0001]
[1741438855660,28.83116721,138.01,137.99,0.0001]
[1741438856363,21.58516721,138.0,137.99,0.0001]
[1741438856563,21.58516721,138.02,137.99,0.0001]
[1741438856778,28.83056721,138.02,137.99,0.0001]
[1741438856983,21.58516721,138.01,137.99,0.0001]
[1741438857683,21.58516721,138.0,137.99,0.0001]
[1741438858963,46.85481607,138.0,137.99,0.0001]
[1741438859570,54.10111607,138.0,137.99,0.0001]
[1741438860180,50.0,137.99,137.98,0.0001]
[1741438860488,152.78516721,137.99,137.98,0.0001]
[1741438860695,102.78516721,137.99,137.98,0.0001]
[1741438861865,81.2,137.99,137.98,0.0001]
[1741438862499,21.58516721,138.01,137.98,0.0001]
[1741438862898,6.62,138.02,137.99,1.5668]
[1741438863281,28.20516721,138.02,137.99,1.5668]
[1741438863598,6.62,138.02,137.99,1.5668]
[1741438864698,28.20516721,138.02,137.99,1.5668]
[1741438864870,21.58516721,138.01,137.99,1.5668]
[1741438865071,21.58516721,138.0,137.98,6.5522]
[1741438865279,21.58516721,137.99,137.98,0.0001]
[1741438866188,28.83206721,137.99,137.98,0.0001]
[1741438867394,21.58516721,137.99,137.98,0.0001]
[1741438867998,28.83166721,138.0,137.98,0.0001]
[1741438868198,21.58516721,137.99,137.98,0.0001]
[1741438870300,28.83206721,137.99,137.98,0.0001]
[1741438873016,97.48171607,137.99,137.98,0.0001]
[1741438874119,103.44804042,137.99,137.98,0.0001]
[1741438874414,97.48171607,137.99,137.98,0.0001]
[1741438875508,104.10171607,137.99,137.98,0.0001]
[1741438876996,18.64964886,137.98,137.97,0.0131]
[1741438877186,40.23481607,137.98,137.97,0.0131]
[1741438877916,47.48221607,137.98,137.97,0.0131]
[1741438881019,28.83256721,137.98,137.97,0.0131]
[1741438882285,21.58516721,137.98,137.97,0.0131]
[1741438882987,28.83256721,137.98,137.97,0.0131]
[1741438884892,21.58516721,137.98,137.97,0.0131]
[1741438885393,21.58516721,137.99,137.97,0.0131]
[1741438885598,7.2765,138.0,137.94,27.54966721]
[1741438885803,21.58516721,137.99,137.94,27.54966721]
[1741438886007,0.03,138.0,137.95,21.58516721]
[1741438886215,21.61516721,138.0,137.95,21.58516721]
[1741438886437,21.61516721,138.0,137.97,0.033]
[1741438886747,0.03,137.99,137.97,0.033]
[1741438889528,0.03,137.99,137.98,1.5694]
[1741438889726,0.03,138.0,137.98,29.35346721]
[1741438889929,0.03,138.0,137.99,21.58516721]
[1741438891215,21.58516721,138.06,138.0,29.35346721]
[1741438891412,21.58516721,138.07,138.02,21.58516721]
[1741438891623,21.58516721,138.07,138.02,28.83006721]
[1741438892015,21.58516721,138.07,138.02,7.2449]
[1741438892429,21.58516721,138.04,138.0,89.1683]
[1741438892633,21.58516721,138.03,138.0,89.1683]
[1741438892930,21.58516721,138.04,138.0,7.7683]
[1741438893107,28.20516721,138.07,138.01,21.58516721]
[1741438893631,21.58516721,138.08,138.02,21.58516721]
[1741438893823,21.58516721,138.08,138.03,21.58516721]
[1741438894023,21.58516721,138.08,138.04,1.5694]
[1741438894227,21.58516721,138.07,138.04,1.5694]
[1741438894939,21.58516721,138.06,138.04,1.5694]
[1741438895123,21.58516721,138.05,138.04,1.5694]
[1741438895829,21.58516721,138.06,138.04,1.5694]
[1741438896140,21.58516721,138.05,138.04,1.5694]
[1741438896311,28.82836721,138.06,138.04,1.5694]
[1741438897534,28.82746721,138.08,138.04,1.5694]
[1741438898108,178.63516721,138.09,138.05,6.3803]
[1741438898315,21.58516721,138.08,138.05,6.3803]
[1741438898531,21.58516721,138.07,138.05,6.3803]
[1741438898836,21.61516721,138.07,138.05,6.3803]
[1741438899015,0.03,138.07,138.05,6.3803]
[1741438901638,21.61516721,138.07,138.05,6.3803]
[1741438902023,0.03,138.07,138.05,6.3803]
[1741438904447,0.03,138.07,138.05,35.20896721]
[1741438904943,0.03,138.07,138.05,13.6238]
[1741438905524,0.03,138.07,138.05,116.60896721]
[1741438906830,0.03,138.07,138.05,95.0238]
[1741438908646,0.03,138.07,138.06,28.82836721]
[1741438908848,0.03,138.07,138.06,110.22836721]
[1741438910149,0.03,138.07,138.06,128.87801607]
[1741438911841,0.03,138.09,138.07,18.64964886]
[1741438912142,0.03,138.09,138.08,40.23481607]
[1741438912746,0.03,138.12,138.09,1.6298]
[1741438912926,0.03,138.13,138.12,1.6298]
[1741438913131,0.03,138.13,138.12,123.26461607]
[1741438914039,0.03,138.13,138.12,104.61496721]
[1741438914358,0.03,138.13,138.12,123.26461607]
[1741438915553,0.03,138.13,138.12,130.50461607]
[1741438915933,0.03,138.14,138.13,40.23481607]
[1741438917526,0.03,138.14,138.13,47.47431607]
[1741438917764,0.03,138.14,138.12,118.47496721]
[1741438918062,0.03,138.14,138.13,21.58516721]
[1741438918662,0.03,138.14,138.13,28.82466721]
[1741438919461,0.03,138.14,138.13,21.58516721]
[1741438919666,0.03,138.14,138.13,40.23481607]
[1741438920774,0.03,138.19,138.15,28.82366721]
[1741438921065,0.03,138.19,138.15,110.22366721]
[1741438921237,0.03,138.19,138.15,128.87331607]
[1741438921433,0.03,138.19,138.16,18.64964886]
[1741438921669,0.03,138.19,138.18,40.23481607]
[1741438922174,0.03,138.19,138.17,21.58516721]
[1741438922831,0.03,138.19,138.17,28.82246721]
[1741438923575,0.03,138.19,138.16,81.4]
[1741438923738,21.58516721,138.18,138.15,1.63]
[1741438923934,0.03,138.19,138.15,1.63]
[1741438924134,0.03,138.19,138.15,43.21516721]
[1741438924349,0.03,138.19,138.15,21.63]
[1741438924749,21.58516721,138.18,138.15,1.63]
[1741438925341,0.03,138.19,138.15,30.45336721]
[1741438925656,0.03,138.19,138.16,21.58516721]
[1741438925853,0.03,138.19,138.15,83.03]
[1741438926058,21.58516721,138.18,138.15,1.63]
[1741438926955,7.2374,138.17,138.15,1.63]
[1741438927149,0.03,138.19,138.15,23.21516721]
[1741438927369,0.03,138.19,138.16,21.58516721]
[1741438927663,0.03,138.19,138.17,21.58516721]
[1741438927842,0.03,138.19,138.15,104.61516721]
[1741438928554,0.03,138.19,138.15,111.85356721]
[1741438928962,0.03,138.19,138.17,21.58516721]
[1741438929455,0.03,138.19,138.18,21.58516721]
[1741438929880,0.03,138.19,138.17,21.58516721]
[1741438930550,0.03,138.19,138.15,111.85356721]
[1741438930749,0.03,138.19,138.16,21.58516721]
[1741438930953,0.03,138.19,138.16,28.82306721]
[1741438931253,0.03,138.19,138.15,104.61516721]
[1741438931450,0.03,138.19,138.15,111.85346721]
[1741438931640,0.03,138.19,138.16,21.58516721]
[1741438932656,0.03,138.19,138.16,102.98516721]
[1741438934465,0.03,138.19,138.16,110.22296721]
[1741438935469,0.03,138.19,138.17,21.58516721]
[1741438936868,0.03,138.19,138.17,28.82236721]
[1741438937465,0.03,138.19,138.18,28.24146721]
[1741438938557,0.03,138.19,138.18,128.29111607]
[1741438939070,0.03,138.19,138.18,135.52801607]
[1741438940362,0.03,138.21,138.2,20.0]
[1741438940670,0.03,138.22,138.21,18.64964886]
[1741438940852,0.03,138.23,138.22,21.58516721]
[1741438941270,0.0001,138.23,138.22,40.23481607]
[1741438941482,0.03,138.24,138.23,20.24804886]
[1741438941771,0.03,138.24,138.23,124.31774131]
[1741438941973,0.03,138.3,138.27,18.64964886]
[1741438942185,0.03,138.3,138.27,121.63481607]
[1741438942674,0.03,138.3,138.27,128.86701607]
[1741438942996,0.03,138.3,138.27,81.4]
[1741438943570,0.03,138.3,138.27,102.98516721]
[1741438944085,21.58516721,138.29,138.27,81.4]
[1741438944266,21.61516721,138.3,138.27,81.4]
[1741438944457,21.61516721,138.3,138.24,102.98516721]
[1741438944651,28.84576721,138.3,138.23,8.8323]
[1741438944860,21.58516721,138.29,138.24,21.58516721]
[1741438946875,28.81646721,138.29,138.24,21.58516721]
[1741438949382,7.2313,138.29,138.24,21.58516721]
[1741438949558,7.2313,138.29,138.21,6.62]
[1741438949559,21.58516721,138.26,138.21,28.20516721]
[1741438949900,21.58516721,138.26,138.21,81.4]
[1741438950067,21.58516721,138.25,138.21,81.4]
[1741438950250,21.58516721,138.25,138.2,23.10076721]
[1741438950454,21.58516721,138.24,138.2,81.4]
[1741438951375,21.58516721,138.25,138.2,81.4]
[1741438952175,21.58516721,138.27,138.22,21.58516721]
[1741438953078,21.58516721,138.26,138.21,21.58516721]
[1741438953281,21.58516721,138.25,138.2,81.4]
[1741438954479,21.58516721,138.24,138.2,81.4]
[1741438954893,21.58516721,138.22,138.18,81.4]
[1741438955095,7.2353,138.21,138.17,82.9156]
[1741438956290,21.58516721,138.22,138.17,104.50076721]
[1741438956476,28.81956721,138.23,138.17,104.50076721]
[1741438956873,28.81956721,138.23,138.17,111.73806721]
[1741438957289,21.58516721,138.23,138.18,21.58516721]
[1741438957790,28.81906721,138.24,138.18,21.58516721]
[1741438958604,21.58516721,138.23,138.17,82.9156]
[1741438958773,21.58516721,138.22,138.17,104.50076721]
[1741438959094,21.58516721,138.21,138.18,0.033]
[1741438960384,21.58516721,138.2,138.18,0.033]
[1741438961675,28.82076721,138.21,138.18,0.033]
[1741438961862,21.58516721,138.23,138.18,0.033]
[1741438962268,21.58516721,138.22,138.18,81.433]
[1741438962477,21.58516721,138.21,138.18,81.433]
[1741438962878,21.58516721,138.22,138.18,81.433]
[1741438963597,21.58516721,138.23,138.18,81.433]
[1741438963775,21.58516721,138.23,138.18,103.01816721]
[1741438963969,21.58516721,138.23,138.18,81.433]
[1741438964279,21.58516721,138.21,138.18,81.433]
[1741438965093,28.82056721,138.21,138.18,81.433]
[1741438965397,21.58516721,138.19,138.18,0.033]
[1741438965796,21.58516721,138.2,138.18,0.033]
[1741438966377,21.58516721,138.19,138.18,0.033]
[1741438968104,21.58516721,138.2,138.18,0.033]
[1741438968773,28.81956721,138.23,138.18,0.033]
[1741438969501,21.58516721,138.2,138.18,0.033]
[1741438971408,21.58516721,138.22,138.18,0.033]
[1741438972178,21.58516721,138.23,138.18,81.433]
[1741438972978,21.58516721,138.2,138.18,81.433]
[1741438973202,21.58516721,138.2,138.18,0.033]
[1741438973415,25.3181,138.24,138.18,0.033]
[1741438973416,21.58516721,138.21,138.18,0.033]
[1741438974273,21.58516721,138.2,138.18,0.033]
[1741438974902,21.58516721,138.19,138.18,0.033]
[1741438975405,21.58516721,138.2,138.18,0.033]
[1741438976317,28.82126721,138.2,138.18,0.033]
[1741438978299,21.58516721,138.21,138.18,0.033]
[1741438978499,28.81996721,138.22,138.18,0.033]
[1741438979195,21.58516721,138.21,138.18,0.033]
[1741438979807,21.58516721,138.2,138.18,0.033]
[1741438981397,7.2364,138.19,138.18,0.033]
[1741438981590,28.82116721,138.2,138.18,0.033]
[1741438983118,21.58516721,138.19,138.18,0.033]
[1741438983418,7.2374,138.17,138.16,0.033]
[1741438983796,21.01964746,138.17,138.16,0.033]
[1741438984692,13.78224746,138.17,138.16,0.033]
[1741438984898,13.78224746,138.18,138.16,0.033]
[1741438985307,21.52146455,138.19,138.16,0.033]
[1741438985494,21.52146455,138.2,138.16,0.033]
[1741438985694,6.62,138.21,138.16,23.12336455]
[1741438986604,21.52146455,138.22,138.17,21.52146455]
[1741438987003,21.52146455,138.23,138.17,21.52146455]
[1741438987510,21.52146455,138.25,138.18,6.223]
[1741438987701,178.30146455,138.26,138.2,21.52146455]
[1741438987900,178.30146455,138.26,138.21,1.5689]
[1741438988216,21.52146455,138.23,138.2,81.4]
[1741438988419,21.52146455,138.22,138.18,89.1919]
[1741438988606,21.52146455,138.2,138.18,82.9689]
[1741438988809,21.52146455,138.19,138.16,81.433]
[1741438988991,21.52146455,138.18,138.16,81.433]
[1741438989197,21.52146455,138.19,138.16,81.433]
[1741438989413,21.52146455,138.22,138.16,110.19216455]
[1741438989619,21.52146455,138.22,138.17,21.52146455]
[1741438990015,21.52146455,138.2,138.16,88.6707]
[1741438990201,21.52146455,138.2,138.16,81.433]
[1741438991920,21.52146455,138.19,138.16,0.033]
[1741438992327,21.52146455,138.18,138.16,0.033]
[1741438992628,21.52146455,138.22,138.16,28.79236455]
[1741438992803,37.73636864,138.24,138.18,21.52146455]
[1741438993004,37.73636864,138.24,138.18,102.92146455]
[1741438993317,37.73636864,138.24,138.19,1.5249]
[1741438993519,0.03,138.2,138.19,23.04636455]
[1741438993725,0.03,138.2,138.19,104.44636455]
[1741438993923,0.03,138.2,138.19,82.9249]
[1741438994126,0.03,138.2,138.19,1.5249]
[1741438994306,21.55146455,138.2,138.16,82.9579]
[1741438994700,21.52146455,138.19,138.16,82.9579]
[1741438995717,21.52146455,138.17,138.16,0.033]
[1741438997200,34.44494775,138.17,138.16,0.033]
[1741438997613,34.44494775,138.18,138.16,0.033]
[1741438998127,41.68234775,138.17,138.16,0.033]
[1741438999135,7.237,138.18,138.16,0.033]
[1741438999338,6.6,138.19,138.16,0.033]
[1741439000529,13.8364,138.19,138.16,0.033]
[1741439001030,6.6,138.19,138.16,0.033]
[1741439001220,0.03,138.2,138.16,0.033]
[1741439001421,0.03,138.2,138.16,34.47794775]
[1741439001830,0.03,138.2,138.17,34.44494775]
[1741439002033,0.03,138.2,138.18,8.1169]
[1741439004017,34.47494775,138.2,138.18,1.5506]
[1741439004434,41.71094775,138.2,138.18,1.5506]
[1741439004951,7.266,138.2,138.18,1.5506]
[1741439005109,0.03,138.2,138.18,1.5506]
[1741439008620,0.03,138.2,138.18,8.7873]
[1741439010745,0.03,138.2,138.19,59.14159661]
[1741439010925,0.03,138.2,138.19,140.54159661]
[1741439011832,16.25245927,138.25,138.19,140.54159661]
[1741439012022,16.25245927,138.25,138.23,1.5935]
[1741439012236,11.17236993,138.27,138.23,1.5935]
[1741439012742,11.17236993,138.27,138.23,8.8277]
[1741439013142,11.17236993,138.27,138.23,1.5935]
[1741439013640,34.44494775,138.27,138.23,1.5935]
[1741439015650,0.03,138.28,138.23,124.67264775]
[1741439015847,34.47494775,138.28,138.23,124.67264775]
[1741439016857,0.03,138.28,138.23,124.67264775]
[1741439017034,0.03,138.27,138.25,40.94204775]
[1741439017354,0.03,138.27,138.25,109.38122468]
[1741439018548,0.03,138.27,138.26,40.13377354]
[1741439018751,0.03,138.27,138.26,121.53377354]
[1741439019343,0.03,138.27,138.26,130.42657354]
[1741439020254,0.03,138.27,138.26,83.0601]
[1741439021843,0.03,138.27,138.26,104.54422468]
[1741439022039,0.03,138.27,138.26,130.42657354]
[1741439025258,0.03,138.28,138.27,18.64964886]
[1741439025461,0.03,138.28,138.27,40.13377354]
[1741439025646,0.03,138.28,138.27,47.36597354]
[1741439026047,0.03,138.28,138.27,18.64964886]
[1741439026435,0.03,138.28,138.26,111.77672468]
[1741439026634,0.03,138.28,138.26,83.0601]
[1741439027051,0.03,138.28,138.26,1.6601]
[1741439027751,0.03,138.28,138.26,30.37672468]
[1741439027953,0.03,138.28,138.26,23.14422468]
[1741439028149,0.03,138.28,138.26,1.6601]
[1741439029265,21.51412468,138.28,138.22,8.7589]
[1741439029439,0.03,138.28,138.23,21.48412468]
[1741439029644,0.03,138.28,138.24,40.13377354]
[1741439029953,0.03,138.28,138.24,121.53377354]
[1741439030752,0.03,138.28,138.24,102.88412468]
[1741439030951,0.03,138.28,138.25,21.48412468]
[1741439031152,0.03,138.28,138.25,102.88412468]
[1741439031636,0.03,138.28,138.26,40.13377354]
[1741439031840,0.03,138.28,138.27,21.48412468]
[1741439032168,0.03,138.28,138.26,46.48267354]
[1741439032348,0.03,138.28,138.26,24.99854886]
[1741439032542,0.03,138.28,138.26,6.3489]
[1741439032770,0.03,138.28,138.25,102.88412468]
[1741439032970,0.03,138.28,138.25,110.11722468]
[1741439033963,0.03,138.28,138.25,102.88412468]
[1741439034169,0.03,138.28,138.25,81.4]
[1741439035469,21.51412468,138.28,138.25,81.4]
[1741439036044,28.74622468,138.28,138.25,81.4]
[1741439036669,28.74622468,138.28,138.23,87.7489]
[1741439037957,21.48412468,138.27,138.22,82.9243]
[1741439038370,7.2327,138.26,138.22,82.9243]
[1741439038678,21.51412468,138.28,138.22,111.64312468]
[1741439038869,21.51412468,138.28,138.23,21.48412468]
[1741439039183,0.03,138.28,138.24,40.13377354]
[1741439039474,0.03,138.28,138.25,21.48412468]
[1741439039649,0.03,138.28,138.25,102.88412468]
[1741439040051,0.03,138.28,138.25,81.4]
[1741439040258,28.74602468,138.28,138.25,81.4]
[1741439040447,28.74602468,138.28,138.25,81.433]
[1741439041048,0.03,138.28,138.25,81.433]
[1741439041248,0.03,138.28,138.25,102.91712468]
[1741439041464,0.03,138.28,138.25,110.15022468]
[1741439041971,0.03,138.28,138.25,81.433]
[1741439043955,0.03,138.28,138.25,88.6661]
[1741439044569,0.03,138.28,138.25,110.15022468]
[1741439049652,0.03,138.28,138.25,81.433]
[1741439050173,21.51412468,138.28,138.25,81.433]
[1741439050355,21.48412468,138.27,138.25,81.433]
[1741439051473,28.71642468,138.27,138.25,81.433]
[1741439051677,21.48412468,138.26,138.25,0.033]
[1741439053686,28.71682468,138.26,138.25,0.033]
[1741439054384,21.48412468,138.26,138.25,0.033]
[1741439055658,28.71682468,138.26,138.25,0.033]
[1741439056361,21.48412468,138.26,138.25,0.033]
[1741439056865,28.71682468,138.26,138.25,0.033]
[1741439057064,13.8621,138.28,138.25,0.033]
[1741439057384,21.48412468,138.27,138.25,0.033]
[1741439057765,28.71642468,138.27,138.25,0.033]
[1741439058182,21.48412468,138.26,138.25,0.033]
[1741439059985,28.71682468,138.26,138.25,0.033]
[1741439067284,13.76315481,138.26,138.25,0.033]
[1741439070091,20.99585481,138.26,138.25,0.0001]
[1741439070303,18.64964886,138.25,138.18,89.1709]
[1741439070496,13.76315481,138.2,138.18,7.7709]
[1741439071498,13.76315481,138.21,138.18,7.7709]
[1741439072296,20.99855481,138.21,138.18,7.7709]
[1741439072472,13.76315481,138.19,138.18,0.033]
[1741439075077,20.99955481,138.19,138.18,0.033]
[1741439078220,13.76315481,138.19,138.18,0.033]
[1741439078516,13.76315481,138.22,138.18,0.033]
[1741439079186,13.76315481,138.22,138.18,1.5702]
[1741439080911,20.99805481,138.22,138.18,1.5702]
[1741439081111,13.76315481,138.21,138.18,1.5702]
[1741439081523,13.76315481,138.22,138.18,1.5702]
[1741439082426,13.76315481,138.22,138.18,8.8069]
[1741439082637,20.36315481,138.23,138.18,8.8069]
[1741439082925,6.6,138.23,138.2,7.2358]
[1741439083100,6.6,138.23,138.19,13.3031]
[1741439083298,13.76315481,138.24,138.19,13.3031]
[1741439084806,13.76315481,138.25,138.19,108.46625481]
[1741439086837,13.76315481,138.24,138.19,94.7031]
[1741439090023,13.76315481,138.24,138.19,94.7361]
[1741439090421,20.99705481,138.24,138.19,87.4999]
[1741439090728,13.76315481,138.22,138.19,87.4999]
[1741439092037,13.76315481,138.23,138.19,87.4999]
[1741439092715,13.76315481,138.23,138.19,94.7362]
[1741439092915,13.76315481,138.23,138.19,13.3362]
[1741439093640,20.99705481,138.24,138.19,13.3362]
[1741439094216,13.76315481,138.23,138.19,6.0999]
[1741439094428,13.76315481,138.21,138.19,6.0999]
[1741439096044,13.76315481,138.2,138.19,0.033]
[1741439097624,13.76315481,138.22,138.19,0.033]
[1741439098627,20.99805481,138.22,138.19,0.033]
[1741439099032,13.76315481,138.21,138.19,0.033]
[1741439099547,13.76315481,138.24,138.19,0.033]
[1741439101044,13.76315481,138.23,138.19,0.033]
[1741439101249,13.76315481,138.22,138.19,0.033]
[1741439101625,13.76315481,138.21,138.19,0.033]
[1741439102122,13.76315481,138.22,138.19,0.033]
[1741439102320,13.76315481,138.24,138.19,0.033]
[1741439102742,13.76315481,138.24,138.19,81.433]
[1741439103533,13.79315481,138.25,138.2,13.2789]
[1741439104339,13.79315481,138.25,138.2,27.04205481]
[1741439104844,0.03,138.25,138.22,13.76315481]
[1741439105148,0.03,138.25,138.22,95.16315481]
[1741439105448,0.03,138.25,138.23,13.76315481]
[1741439105649,0.03,138.25,138.23,20.99745481]
[1741439105955,0.03,138.25,138.24,32.41280367]
[1741439106250,0.03,138.25,138.24,39.97900367]
[1741439107240,0.03,138.25,138.24,7.5662]
[1741439108255,0.03,138.25,138.24,14.7999]
[1741439109146,0.03,138.26,138.24,47.21270367]
[1741439109454,0.03,138.26,138.25,32.41280367]
[1741439109637,0.03,138.26,138.25,121.04600367]
[1741439110535,0.03,138.27,138.25,121.04600367]
[1741439110536,0.03,138.28,138.27,20.0]
[1741439110842,0.03,138.28,138.27,60.47050367]
[1741439111351,0.03,138.3,138.28,100.04964886]
[1741439111656,0.03,138.3,138.29,39.64390367]
[1741439112031,0.03,138.31,138.3,18.64964886]
[1741439112231,0.03,138.34,138.32,20.0]
[1741439112450,0.03,138.34,138.32,188.86542291]
[1741439112648,0.03,138.34,138.33,20.25874886]
[1741439112956,0.03,138.34,138.33,47.07050367]
[1741439113732,0.03,138.38,138.36,20.0]
[1741439113937,0.03,138.38,138.36,101.4]
[1741439114152,0.03,138.38,138.37,33.97580367]
[1741439115241,0.03,138.38,138.37,123.05896767]
[1741439116542,0.03,138.38,138.37,101.61264886]
[1741439116743,0.03,138.38,138.37,1.563]
[1741439117261,0.03,138.38,138.37,41.65896767]
[1741439118333,0.03,138.38,138.37,123.05896767]
[1741439123949,0.03,138.38,138.37,82.963]
[1741439128057,0.03,138.38,138.36,101.4]
[1741439128262,0.03,138.38,138.36,81.4]
[1741439128965,21.47631881,138.38,138.34,0.033]
[1741439129270,21.44631881,138.37,138.34,0.033]
[1741439129469,21.47631881,138.38,138.34,0.033]
[1741439130277,21.44631881,138.36,138.34,0.033]
[1741439130860,21.44631881,138.35,138.34,0.033]
[1741439132258,28.67431881,138.35,138.34,0.033]
[1741439133452,6.58,138.36,138.34,0.033]
[1741439134663,21.47631881,138.38,138.34,0.033]
[1741439134977,28.70281881,138.38,138.34,0.033]
[1741439135362,21.47631881,138.38,138.34,0.033]
[1741439135885,0.03,138.38,138.34,123.14046767]
[1741439136559,0.03,138.38,138.34,83.0445]
[1741439136866,21.44631881,138.37,138.34,81.433]
[1741439137784,0.03,138.37,138.34,81.433]
[1741439137954,21.47631881,138.37,138.34,0.033]
[1741439138155,21.44631881,138.36,138.34,0.033]
[1741439138467,21.47631881,138.37,138.34,0.033]
[1741439138663,21.44631881,138.36,138.34,0.033]
[1741439138978,21.44631881,138.35,138.34,0.033]
[1741439139383,13.74128785,138.35,138.34,0.033]
[1741439140480,13.74128785,138.36,138.34,0.033]
[1741439140785,20.99858785,138.37,138.34,0.033]
[1741439141360,28.72401784,138.37,138.34,0.033]
[1741439142080,21.49671784,138.37,138.34,0.033]
[1741439142588,0.03,138.37,138.34,102.89971784]
[1741439142785,0.03,138.37,138.35,21.46671784]
[1741439143183,0.03,138.37,138.36,46.4245667]
[1741439143368,0.03,138.37,138.36,129.4360667]
[1741439143883,0.03,138.37,138.36,89.3197]
[1741439144085,0.03,138.37,138.36,7.9197]
[1741439144273,0.03,138.37,138.36,1.6115]
[1741439144972,0.03,138.37,138.34,0.033]
[1741439145986,7.257,138.37,138.34,0.033]
[1741439146193,28.72371784,138.37,138.34,0.033]
[1741439146485,21.49671784,138.37,138.34,0.033]
[1741439146685,0.03,138.37,138.34,0.033]
[1741439147884,0.03,138.37,138.34,21.49971784]
[1741439148086,0.03,138.37,138.35,7.228]
[1741439148989,0.03,138.37,138.35,28.69471784]
[1741439149185,0.03,138.37,138.36,40.1163667]
[1741439149388,0.03,138.38,138.36,48.2686667]
[1741439149591,0.0001,138.38,138.37,21.46671784]
[1741439149794,0.0001,138.39,138.38,106.06294886]
[1741439149983,0.0001,138.39,138.38,128.61301585]
[1741439150166,0.0001,138.39,138.38,135.83941585]
[1741439150361,0.0001,138.39,138.38,134.7560667]
[1741439151303,0.03,138.41,138.4,20.0]
[1741439151601,0.0001,138.41,138.4,141.5162667]
[1741439152193,0.0001,138.41,138.4,148.7416667]
[1741439152366,0.0001,138.41,138.4,27.2254]
[1741439152799,0.0001,138.41,138.4,20.0]
[1741439153103,21.46681784,138.41,138.36,29.61901784]
[1741439153395,21.46681784,138.41,138.36,82.9723]
[1741439153896,21.46671784,138.4,138.36,82.9723]
[1741439154269,28.69221784,138.4,138.36,1.5723]
[1741439154579,21.46671784,138.39,138.34,81.433]
[1741439154778,21.46671784,138.37,138.34,0.033]
[1741439154974,21.46671784,138.36,138.34,0.033]
[1741439156202,21.46671784,138.37,138.34,0.033]
[1741439156390,21.46671784,138.38,138.34,0.033]
[1741439156701,35.27221784,138.4,138.34,21.49971784]
[1741439156904,35.27221784,138.4,138.34,102.89971784]
[1741439157799,35.27221784,138.4,138.34,110.12811784]
[1741439157980,28.04671784,138.4,138.34,110.12811784]
[1741439158185,6.58,138.4,138.35,21.46671784]
[1741439158900,13.8054,138.4,138.35,21.46671784]
[1741439159104,35.27211784,138.4,138.34,102.89971784]
[1741439159296,21.46671784,138.38,138.34,81.433]
[1741439159802,21.46671784,138.37,138.34,81.433]
[1741439160009,21.46671784,138.36,138.34,0.033]
[1741439160380,21.46671784,138.35,138.34,0.033]
[1741439160795,21.46671784,138.36,138.34,0.033]
[1741439161109,21.46671784,138.38,138.34,0.033]
[1741439161280,21.46671784,138.37,138.34,0.033]
[1741439161896,28.69421784,138.36,138.34,0.033]
[1741439162101,21.46671784,138.35,138.34,0.033]
[1741439163278,21.46671784,138.36,138.34,0.033]
[1741439163904,28.69471784,138.35,138.34,0.033]
[1741439168931,53.9643667,138.35,138.28,7.7792]
[1741439169225,21.46671784,138.3,138.24,36.68721784]
[1741439169394,21.46671784,138.28,138.24,89.3869]
[1741439169796,21.46671784,138.27,138.21,109.48671784]